Cogmind - Beta 16 @@@ ROGUE MODE // 2026.02.04 @ 11:03:35 Player: quak Result: Destroyed by G-50 Soldier with Heavy Laser Performance ------------- Evolutions (3) 1500 Regions Visited (8) 1600 Robots Destroyed (0) 0 Value Destroyed (0) 0 Prototype IDs (23) 460 Alien Tech Used (0) 0 Bonus (934) 934 TOTAL SCORE: 4494 Bonus ------- Pacifist 634 Aligned with FarCom 300 Cogmind --------- Core Integrity 0/700 Matter 171/300 Energy 99/100 System Corruption 0% Temperature Cool (9) Movement Core (50) Location -7/Lower Caves Parts ------- > --- POWER (7) -------- (None) > --- PROPULSION (2) --- (None) > --- UTILITY (2) ------ (None) > --- WEAPON (2) ------- (None) > --- INVENTORY (5) ---- (None) Peak State ------------ None Favorites ----------- Power None Propulsion None Utility None Weapon None Build | -11 -10 -10 -10 -9 -8 -7 -7 -7 ------- Run | Yrd Mat Min Exi Min Mat Fac Low Low Slots Evolved 6 | . . . . . 4 2 . . Power 6 | . . . . . 4 2 . . Propulsion . | . . . . . . . . . Utility . | . . . . . . . . . Weapon . | . . . . . . . . . Parts Attached . | . . . . . . . . . Power . | . . . . . . . . . Engine . | . . . . . . . . . Core . | . . . . . . . . . Reactor . | . . . . . . . . . Propulsion . | . . . . . . . . . Treads . | . . . . . . . . . Leg . | . . . . . . . . . Wheel . | . . . . . . . . . Hover . | . . . . . . . . . Flight . | . . . . . . . . . Utility . | . . . . . . . . . Device . | . . . . . . . . . Storage . | . . . . . . . . . Processor . | . . . . . . . . . Hackware . | . . . . . . . . . Protection . | . . . . . . . . . Artifact . | . . . . . . . . . Weapon . | . . . . . . . . . Energy Gun . | . . . . . . . . . Energy Cannon . | . . . . . . . . . Ballistic Gun . | . . . . . . . . . Ballistic Cannon . | . . . . . . . . . Launcher . | . . . . . . . . . Special Weapon . | . . . . . . . . . Impact Weapon . | . . . . . . . . . Slashing Weapon . | . . . . . . . . . Piercing Weapon . | . . . . . . . . . Special Melee Weapon . | . . . . . . . . . Unidentified Prototypes . | . . . . . . . . . Parts Lost . | . . . . . . . . . Power . | . . . . . . . . . Propulsion . | . . . . . . . . . Utility . | . . . . . . . . . Weapon . | . . . . . . . . . Highest Loss Streak . | . . . . . . . . . To Critical Strikes . | . . . . . . . . . Average Backups . | . . . . . . . . . Power . | . . . . . . . . . Propulsion . | . . . . . . . . . Utility . | . . . . . . . . . Weapon . | . . . . . . . . . Tool/Special . | . . . . . . . . . Unused Backups . | . . . . . . . . . Power . | . . . . . . . . . Propulsion . | . . . . . . . . . Utility . | . . . . . . . . . Weapon . | . . . . . . . . . Tool/Special . | . . . . . . . . . Average Slot Usage (%) . | . . . . . . . . . Peak Build Rating . | . . . . . . . . . Average Rating . | . . . . . . . . . On Entrance . | . . . . . . . . . Avg Prop Armor Cover (%) . | . . . . . . . . . Naked Turns 1629 | . 28 42 102 171 685 143 352 106 Heaviest Build . | . . . . . . . . . Greatest Support 3 | 3 3 3 3 3 3 3 3 3 Greatest Overweight (x) . | . . . . . . . . . Average Overweight (x) . | . . . . . . . . . Largest Inventory Capacity 5 | 5 5 5 5 5 5 5 5 5 Average Capacity 5 | 5 5 5 5 5 5 5 5 5 Most Carried . | . . . . . . . . . Average Carried . | . . . . . . . . . Final Capacity 5 | 5 5 5 5 5 5 5 5 5 Final Carried . | . . . . . . . . . Class Distribution -------------------- 100% | Mutant Dominant Class ---------------- Mutant | -10/Materials Mutant | -10/Mines Mutant | -10/Exiles Mutant | -9/Mines Mutant | -8/Materials Mutant | -7/Factory Mutant | -7/Lower Caves Mutant | -7/Lower Caves Resources | -11 -10 -10 -10 -9 -8 -7 -7 -7 ----------- Run | Yrd Mat Min Exi Min Mat Fac Low Low Matter Collected 36 | . . . . . . . . 36 Remotely . | . . . . . . . . . Salvage Created . | . . . . . . . . . Parts . | . . . . . . . . . Haulers Intercepted . | . . . . . . . . . Recyclers Shooed . | . . . . . . . . . Parts Field Recycled . | . . . . . . . . . Retrieved Matter . | . . . . . . . . . Parts Self-Destructed 10 | . . . . . . . 10 . Prevented . | . . . . . . . . . Parts Restored . | . . . . . . . . . Kills | -11 -10 -10 -10 -9 -8 -7 -7 -7 ------- Run | Yrd Mat Min Exi Min Mat Fac Low Low Combat Hostiles Destroyed . | . . . . . . . . . Classes Destroyed . | . . . . . . . . . Best Kill Streak . | . . . . . . . . . Combat Bots Only . | . . . . . . . . . Max Kills in Single Turn . | . . . . . . . . . Gunslinging . | . . . . . . . . . Exploded . | . . . . . . . . . Melee . | . . . . . . . . . Uniques/NPCs Destroyed . | . . . . . . . . . Combat | -11 -10 -10 -10 -9 -8 -7 -7 -7 -------- Run | Yrd Mat Min Exi Min Mat Fac Low Low Hostile Shots Fired 168 | . . 23 . 8 17 . 112 8 Missed 74 | . . 5 . 3 7 . 55 4 Hits 94 | . . 18 . 5 10 . 57 4 Melee 4 | . . . . . 4 . . . Projectile 90 | . . 18 . 5 6 . 57 4 AOE 2 | . . . . . 2 . . . Critical Strikes 1 | . . . . . 1 . . . Damage Taken 1152 | . . 159 . 73 203 . 648 69 Core 1152 | . . 159 . 73 203 . 648 69 Absorbed by Shields . | . . . . . . . . . Core Remaining (%) 56 | 100 . . . 7 63 . . . Volleys Fired . | . . . . . . . . . Largest . | . . . . . . . . . Hottest . | . . . . . . . . . Shots Fired . | . . . . . . . . . Gun . | . . . . . . . . . Cannon . | . . . . . . . . . Launcher . | . . . . . . . . . Special . | . . . . . . . . . Kinetic . | . . . . . . . . . Thermal . | . . . . . . . . . Explosive . | . . . . . . . . . Electromagnetic . | . . . . . . . . . Robot Hit Streak . | . . . . . . . . . Robot Miss Streak . | . . . . . . . . . Penetration Max . | . . . . . . . . . Secondary Targets . | . . . . . . . . . Shots Hit Robots . | . . . . . . . . . Core Hits 3 | . . 1 . 1 . . 1 . Critical Kills . | . . . . . . . . . Critical Parts Destroyed . | . . . . . . . . . Critical Strikes . | . . . . . . . . . Melee Attacks . | . . . . . . . . . Impact . | . . . . . . . . . Slashing . | . . . . . . . . . Piercing . | . . . . . . . . . Sneak Attacks . | . . . . . . . . . Combat Hostiles . | . . . . . . . . . Follow-up Attacks . | . . . . . . . . . Damage Inflicted 51 | . . 17 . 28 . . 6 . Guns . | . . . . . . . . . Cannons . | . . . . . . . . . Explosions . | . . . . . . . . . Melee . | . . . . . . . . . Ramming 51 | . . 17 . 28 . . 6 . Kinetic . | . . . . . . . . . Thermal . | . . . . . . . . . Explosive . | . . . . . . . . . Electromagnetic . | . . . . . . . . . Impact . | . . . . . . . . . Slashing . | . . . . . . . . . Piercing . | . . . . . . . . . Highest Corruption 3 | . . . . 3 . . . . Average Corruption 2 | . . . . 2 . . . . Corruption Purged . | . . . . . . . . . Corruption Blocked . | . . . . . . . . . Overload Shots . | . . . . . . . . . Overflow Damage . | . . . . . . . . . Projectiles . | . . . . . . . . . Explosions . | . . . . . . . . . Melee . | . . . . . . . . . Knockbacks . | . . . . . . . . . Impact . | . . . . . . . . . Kinetic . | . . . . . . . . . Secondary . | . . . . . . . . . Self-Inflicted Damage 24 | . . 8 . 14 . . 2 . Shots . | . . . . . . . . . Rammed 10 | . . 4 . 4 . . 2 . Targets Rammed 10 | . . 4 . 4 . . 2 . Kicked . | . . . . . . . . . Crushed . | . . . . . . . . . Highest Temperature . | . . . . . . . . . Average Temperature . | . . . . . . . . . Received Heat Transfer 195 | . . 9 . 33 27 . 90 36 Siege Activations . | . . . . . . . . . Martial Activations . | . . . . . . . . . Shielding Activations . | . . . . . . . . . Robots Disrupted . | . . . . . . . . . Combat Hostiles . | . . . . . . . . . Robots Corrupted . | . . . . . . . . . Combat Hostiles . | . . . . . . . . . Parts Fried . | . . . . . . . . . Impact Corruptions . | . . . . . . . . . Robots Melted . | . . . . . . . . . Combat Hostiles . | . . . . . . . . . Parts Melted . | . . . . . . . . . Heat Transferred . | . . . . . . . . . Parts Sabotaged . | . . . . . . . . . Parts Stolen . | . . . . . . . . . Parts Stripped . | . . . . . . . . . Power Chain Reactions . | . . . . . . . . . Alert | -11 -10 -10 -10 -9 -8 -7 -7 -7 ------- Run | Yrd Mat Min Exi Min Mat Fac Low Low Maximum Alert Level . | . . . . . . . . . Low Security (%) 100 | 100 100 100 . 100 100 100 . . Level 1 . | . . . . . . . . . Level 2 . | . . . . . . . . . Level 3 . | . . . . . . . . . Level 4 . | . . . . . . . . . Level 5 . | . . . . . . . . . High Security . | . . . . . . . . . Max Security . | . . . . . . . . . Peak Influence 30 | . 7 30 . . 15 12 . . Initial 2 | . . . . . . 2 . . Average . | . 1 7 . . . 1 . . Influence Increases 319 | . 7 30 . . 15 12 255 . Successful Hack 19 | . 7 . . . . 12 . . Lose Combat Pursuer 300 | . . 30 . . 15 . 255 . Influence Decreases 256 | . 7 10 20 . 8 19 115 77 Entered New Map 52 | . . . 20 . . 5 . 27 Time Decay 204 | . 7 10 . . 8 14 115 50 Squads Dispatched 3 | . 1 . . . 2 . . . Investigation . | . . . . . . . . . Extermination . | . . . . . . . . . Reinforcement 3 | . 1 . . . 2 . . . Assault . | . . . . . . . . . Garrison . | . . . . . . . . . Intercept . | . . . . . . . . . Searches Triggered . | . . . . . . . . . Construction Impeded . | . . . . . . . . . Haulers Reinforced . | . . . . . . . . . Active Scanning Responses . | . . . . . . . . . Cargo Convoy Interrupts . | . . . . . . . . . Stealth | -11 -10 -10 -10 -9 -8 -7 -7 -7 --------- Run | Yrd Mat Min Exi Min Mat Fac Low Low Distress Signals 1 | . . . . . 1 . . . Communications Jammed . | . . . . . . . . . Distress Signals . | . . . . . . . . . Times Spotted 50 | . 1 9 . 6 7 . 22 5 Peak Tracking Total 11 | . 1 8 . 6 8 . 11 5 Tactical Retreats 10 | . . 1 . . 1 . 8 . Traps | -11 -10 -10 -10 -9 -8 -7 -7 -7 ------- Run | Yrd Mat Min Exi Min Mat Fac Low Low Traps Triggered . | . . . . . . . . . Indirectly . | . . . . . . . . . Trap Hack Attempts . | . . . . . . . . . Triggered . | . . . . . . . . . Disarmed . | . . . . . . . . . Reprogrammed . | . . . . . . . . . Reused . | . . . . . . . . . Traps Extracted . | . . . . . . . . . Installed . | . . . . . . . . . Triggered . | . . . . . . . . . Machines | -11 -10 -10 -10 -9 -8 -7 -7 -7 ---------- Run | Yrd Mat Min Exi Min Mat Fac Low Low Machines Disabled . | . . . . . . . . . Max in Single Turn . | . . . . . . . . . Machines Repaired . | . . . . . . . . . Machines Dismantled . | . . . . . . . . . Machines Sabotaged . | . . . . . . . . . Overloaded Fab Kills . | . . . . . . . . . Hacking | -11 -10 -10 -10 -9 -8 -7 -7 -7 --------- Run | Yrd Mat Min Exi Min Mat Fac Low Low Machines Accessed 5 | . 1 . 1 . . 2 1 . Terminals 3 | . 1 . . . . 2 . . Fabricators . | . . . . . . . . . Repair Stations . | . . . . . . . . . Recycling Units . | . . . . . . . . . Scanalyzers . | . . . . . . . . . Garrison Access . | . . . . . . . . . Total Hacks 12 | . 5 . 1 . . 5 1 . Successful 6 | . 2 . 1 . . 2 1 . Failed 6 | . 3 . . . . 3 . . Catastrophic . | . . . . . . . . . Database Lockouts . | . . . . . . . . . Manual 11 | . 5 . 1 . . 5 . . Terminals 10 | . 5 . . . . 5 . . Fabricators . | . . . . . . . . . Repair Stations . | . . . . . . . . . Recycling Units . | . . . . . . . . . Scanalyzers . | . . . . . . . . . Garrison Access . | . . . . . . . . . Terminal Hacks 3 | . 1 . 1 . . . 1 . Open Door 1 | . . . . . . . 1 . Branch Access Points 1 | . 1 . . . . . . . Proto ID Catalog 1 | . . . 1 . . . . . Fabricator Hacks . | . . . . . . . . . Repair Station Hacks . | . . . . . . . . . Recycling Unit Hacks . | . . . . . . . . . Scanalyzer . | . . . . . . . . . Garrison Access Hacks . | . . . . . . . . . Unauthorized Hacks 3 | . 1 . . . . 2 . . Terminals 3 | . 1 . . . . 2 . . Botnet 3 | . 1 . . . . 2 . . Fabricators . | . . . . . . . . . Repair Stations . | . . . . . . . . . Recycling Units . | . . . . . . . . . Scanalyzers . | . . . . . . . . . Garrison Access . | . . . . . . . . . Data Cores Recovered . | . . . . . . . . . Used . | . . . . . . . . . Hacking Detections 3 | . 1 . . . . 2 . . Full Trace Events . | . . . . . . . . . Feedback Events . | . . . . . . . . . Feedback Blocked . | . . . . . . . . . Robot Schematics Acquired . | . . . . . . . . . Robots Built . | . . . . . . . . . Authchips . | . . . . . . . . . Time . | . . . . . . . . . Total Robot Build Rating . | . . . . . . . . . Part Schematics Acquired . | . . . . . . . . . Parts Built . | . . . . . . . . . Authchips . | . . . . . . . . . Time . | . . . . . . . . . Total Part Build Rating . | . . . . . . . . . Part Studies Acquired . | . . . . . . . . . Parts Repaired . | . . . . . . . . . Time . | . . . . . . . . . Parts Recycled . | . . . . . . . . . Recycled Matter . | . . . . . . . . . Retrieved Matter . | . . . . . . . . . Retrieved Components . | . . . . . . . . . Parts Scanalyzed . | . . . . . . . . . Part Schematics Acquired . | . . . . . . . . . Parts Damaged . | . . . . . . . . . Bothacking | -11 -10 -10 -10 -9 -8 -7 -7 -7 ------------ Run | Yrd Mat Min Exi Min Mat Fac Low Low Used RIF Installer . | . . . . . . . . . Robots Hacked . | . . . . . . . . . Non-combat . | . . . . . . . . . Combat . | . . . . . . . . . Robot Hacks Applied . | . . . . . . . . . Relay Couplers Released . | . . . . . . . . . Fabnet Peak Effective % . | . . . . . . . . . Robots Rewired . | . . . . . . . . . Allies Hacked . | . . . . . . . . . Hacks Repelled . | . . . . . . . . . Allies | -11 -10 -10 -10 -9 -8 -7 -7 -7 -------- Run | Yrd Mat Min Exi Min Mat Fac Low Low Total Allies . | . . . . . . . . . Largest Group . | . . . . . . . . . Highest-Rated Group . | . . . . . . . . . Highest-Rated Ally . | . . . . . . . . . Total Orders . | . . . . . . . . . Ally Attacks . | . . . . . . . . . Total Damage . | . . . . . . . . . Kills . | . . . . . . . . . Allies Corrupted . | . . . . . . . . . Allies Melted . | . . . . . . . . . Intel | -11 -10 -10 -10 -9 -8 -7 -7 -7 ------- Run | Yrd Mat Min Exi Min Mat Fac Low Low Active Infowar (turns) . | . . . . . . . . . Robot Analysis Total . | . . . . . . . . . Derelict Logs Recovered 2 | . . . . 1 . . 1 . Drone Launches . | . . . . . . . . . Drone Recoveries . | . . . . . . . . . Exploration | -11 -10 -10 -10 -9 -8 -7 -7 -7 ------------- Run | Yrd Mat Min Exi Min Mat Fac Low Low Turns Passed 1638 | 9 28 42 102 171 685 143 352 106 Spaces Moved 1958 | 18 55 75 203 274 153 285 694 201 Core 1958 | 18 55 75 203 274 153 285 694 201 Treads . | . . . . . . . . . Legs . | . . . . . . . . . Wheels . | . . . . . . . . . Hover . | . . . . . . . . . Flight . | . . . . . . . . . Fastest Speed 50 | 50 50 50 50 50 50 50 50 50 Average Speed 50 | 50 50 50 50 50 50 50 50 50 Slowest Speed 50 | 50 50 50 50 50 50 50 50 50 Overloaded Moves . | . . . . . . . . . Propulsion Burnouts . | . . . . . . . . . Robots Hopped . | . . . . . . . . . Potential Cave-ins . | . . . . . . . . . Cave-ins Triggered . | . . . . . . . . . Exploration Rate (%) 33 | 3 22 23 59 69 14 9 71 33 Regions Visited 8 Branch Regions 5 Pre-discovered Areas . | . . . . . . . . . Known Exits Taken 2 | . 1 . . 1 . . . . Unknown Exits Taken 6 | 1 . 1 1 . 1 1 1 . Scrap Searched 4 | . . . . 2 . . 1 1 Spaces Dug . | . . . . . . . . . Terrain Destroyed . | . . . . . . . . . Melee . | . . . . . . . . . Projectile . | . . . . . . . . . AOE . | . . . . . . . . . Terrain Rammed . | . . . . . . . . . Walls Destroyed . | . . . . . . . . . Machines Disabled . | . . . . . . . . . Actions | -11 -10 -10 -10 -9 -8 -7 -7 -7 --------- Run | Yrd Mat Min Exi Min Mat Fac Low Low Total 2606 | 17 54 78 202 307 760 284 698 206 Wait 645 | . . . . 30 608 . 2 5 Move 1950 | 17 54 74 202 273 152 284 693 201 Hop . | . . . . . . . . . Pick Up . | . . . . . . . . . Fast Attach . | . . . . . . . . . Attach . | . . . . . . . . . Detach . | . . . . . . . . . Swap . | . . . . . . . . . Drop . | . . . . . . . . . Fire . | . . . . . . . . . Melee . | . . . . . . . . . Ram 10 | . . 4 . 4 . . 2 . Kick . | . . . . . . . . . Crush . | . . . . . . . . . Escape Stasis . | . . . . . . . . . Rewire 1 | . . . . . . . 1 . Trap . | . . . . . . . . . Miscellaneous . | . . . . . . . . . Route ------- -11/Scrapyard -10/Materials (discovered 2 exits: *Min x2) -10/Mines -10/Exiles -9/Mines -8/Materials -7/Factory -7/Lower Caves -7/Lower Caves History --------- Turn | Location | Event 3 | -11/Scrapyard | Discovered new exit (range 15) 10 | -11/Scrapyard | Entered Materials 23 | -10/Materials | Identified exit to Mines 38 | -10/Materials | Entered Mines 65 | -10/Mines | Core integrity fell below 50% 78 | -10/Mines | Deemed a non-threat by the Exiles lab entrance 78 | -10/Mines | Discovered new exit (range 5) 80 | -10/Mines | Entered Exiles 93 | -10/Exiles | Met 8R-AWN 102 | -10/Exiles | Met EX-HEX 115 | -10/Exiles | Met EX-BIN 121 | -10/Exiles | Aligned with FarCom system 121 | -10/Exiles | Given EX-Vault access code 133 | -10/Exiles | Opened EX-Vault 146 | -10/Exiles | Warned to stay clear of 0b10 Research branches 160 | -10/Exiles | Met EX-DEC 178 | -10/Exiles | Discovered new exit (range 10) 182 | -10/Exiles | Entered Mines 226 | -9/Mines | Identified exit to Materials 305 | -9/Mines | Build established: Mutant 340 | -9/Mines | Core integrity fell below 20% 353 | -9/Mines | Entered Materials 353 | -8/Materials | Evolved 4 slots: Power x4 1032 | -8/Materials | Discovered new exit (range 13) 1038 | -8/Materials | Entered Factory 1038 | -7/Factory | Evolved 2 slots: Power x2 1177 | -7/Factory | Discovered new exit (range 8) 1181 | -7/Factory | Entered Lower Caves 1229 | -7/Lower Caves | Attracted the attention of an 0b10 checkpoint 1294 | -7/Lower Caves | Attracted the attention of an 0b10 outpost 1345 | -7/Lower Caves | Ambushed by wild Derelicts 1396 | -7/Lower Caves | Core integrity fell below 50% 1404 | -7/Lower Caves | Core integrity fell below 20% 1474 | -7/Lower Caves | Learned 4 Factory zone layouts 1526 | -7/Lower Caves | Discovered new exit (range 16) 1533 | -7/Lower Caves | Entered another Lower Caves area 1582 | -7/Lower Caves | Encountered a Warlord checkpoint 1639 | -7/Lower Caves | Destroyed by G-50 Soldier with Heavy Laser Last Messages --------------- 01474_ Acquired derelict log, extracted data. Data stored: Factory zone layouts (x4). 01508_ N5-1JV(k) breaks down the debris. 01526_ Searching scrap... 01526_ Found Hrd. Heavy Armor Plating. 01526_ Found Salvage Targeting Computer. 01526_ Found 32 Matter. 01526_ EXIT=FOUND LOCATION=UNKNOWN GOAL=ESCAPE 01545_ Searching scrap... 01545_ Found Hardlight Generator. 01545_ Found 36 Matter. 01546_ Acquired 36 matter. 01582_ 48-VXO(M): "Estimated chance of a MAIN.C patrol making it through here: 0%. Unless they've got a Behemoth in tow, in which case it's probably closer to 100%." 01621_ G-50 Soldier: "INCOMING HOSTILES. DEFEND SHIPMENT RENDEZVOUS PERIMETER." Map ----- +----------------------------------------------------+ | ?????????????????????????????????????????????????? | | ?????????????????????????????????????????????????? | | ?????????????????????????????????????????????????? | | ?????????????????????????????????????????????????? | | ?????????????????????????????????????????????????? | | ???????????????????????????????? ????????????????? | | ???????????????????????????????# ???????????? ##? | | ???????????????????????????????# ???????????? ? | | ???????????????????????????????# #?" ????????? ?? | | ???????????????????????????????# #"" ??#???# ?? | | ??????????????????????????????## #" #X##?# ?? | | ??????????????????????????###?# #" ? #?? | | ???????????????????????### #?# " ## ##? ### | | ???????????????????????# #?# "" !] #? | | ???????????????????????# #?# "" ## | | ??????????????????????## #?## #""??"""## | | ??????????????????????# #??# ###### | | ??????????????????????# #### | | ??????????????????????## ## # | | ???????????????????????## ## | | ????????????????????????## | | ??????????????????????#??# ### ### | | ?????????????????????## ?# #?# ###### ##?# # | | ?????????????????????# ## ###g #????## ##??# # | | ??????????????????????# gggg ## #?####?### # | | ??????????????????????## @ #????## | | ??????????????????# ##???## | | ??????????????????# #???## | | ??????????????????# ## #??## | | ??????????????????#A #?## ### #?# | | ??????????????????##???# ###?? #?## #### | | ???????????????????????# ####???? #??## ##?? | | ???????????????????????####??????? ##??## ### | | ??????????????????????????????????? ###### | | ??????????????????????????????????? ### | | ??????????????????????????????????? ## | | ????????????????????????????????????## | | ????????????????????????????????????# # | | ???????????????????????????????????## # | | ??????????????????????????????????## ## # | | ??????????????????????????????????# ### # | | ??????????????????????????????????# ##### ### | | ??????????????????????????????##??## ### | | ??????????????????????????????# #??## | | ??????????????????????????????# ##?# # | | ??????????????????????????????# ### ####### | | ??????????????????????????????# #?????# | | ??????????????????????????????# #?????## | | ?????????????????????????????# ## #??????# | | ?????????????????????????????# ### ##?????# | +----------------------------------------------------+ Best States ------------- Heat Dissipation 34 Energy Generation 5 Energy Capacity 100 Matter Stores 171 Matter Capacity 300 Sight Range 16 Terrain Scan Density 10 Evasion (%) 50 Item Schematics ----------------- None Robot Schematics ------------------ None Fabricated ------------ Nothing Repaired ---------- Nothing Studied --------- None Alien Tech Used ----------------- None Achievements -------------- None Challenges ------------ None Game ------ Seed GrenadeEncryptedSystem Manual? 0 Play Time 00:12:44 Cumulative 40.2 hours Start 2026.02.04 @ 10:51:44 End 2026.02.04 @ 11:03:35 Sessions 1 Manual Loads 0 Difficulty Rogue Special Mode None Game No. 74 Rogue 74 Adventurer 0 Explorer 0 Win Type - Total 3 Types 3/0/0/0/0/0/0/0/0/0 Lore% 39 Gallery% 27 Achievement% 26 Wizard Run 0 Options --------- Layout 1 ASCII 0 Keyboard 1 Movement Vi Keybinds 0 Fullscreen 1 Font 32/SmallcapsGlow Map View 50x40 Zoom Use 0% Tactical HUD 1 Map Filters NONE Filters NONE Steam 1 RUN: 2554b0b5-537e-4104-9db0-cdc23ad14bf3